Workbook

Sheet Меню младшие 1-4 кл Осень-Зима
B12: Согласовано | I12: Разработано и утвеждено
B13: Руководитель общеобразовательного учреждения | I13: Директор ООО "АБК- Пэймент"
B15: ________________________ | I15: ________________Р.Р.Рахматуллин
B20: Примерное цикличное двенадцатидневное меню
B21: Для организации бесплатного горячего питания (горячих завтраков) для обучающихся начальных классов
B22: общеобразовательных организаций Республики Татарстан
B52: ПРИМЕРНОЕ ДВУХНЕДЕЛЬНОЕ МЕНЮ ДЛЯ ОБУЧАЮЩИХСЯ В ОБЩЕОБРАЗОВАТЕЛЬНЫХ ОРГАНИЗАЦИЯХ С 1 по 4 КЛАССЫ
A54: № рецептуры | B54: Наименование блюд | C54: Выход,г | D54: Белки, г | E54: Жиры, г | F54: Углеводы, г | G54: Калорийность, ккал | H54: Витамин B1, мг | I54: Витамин С, мг | J54: Витамин А, мг | K54: Витамин Е, мг | L54: Ca, мг | M54: P, мг | N54: Mg, мг | O54: Fe, мг
B55: 1-ая неделя
B56: 1 день
A57: № 59 Сбор.рец. На прод-ию для обуч. Во всех образ.учреж-Дели 2017 | B57: Салат из моркови с яблоками | C57: 60 | D57: 0.64 | E57: 0.10 | F57: 5.11 | G57: 23.94 | H57: 0.03 | I57: 2.63 | J57: 0.00 | K57: 0.21 | L57: 14.40 | M57: 26.72 | N57: 18.23 | O57: 0.64
A58: № 271 Сбор.рец. На прод-ию для обуч. Во всех образ.учреж-Дели 2017 | B58: Котлета домашняя из говядины | C58: 90 | D58: 10.15 | E58: 13.79 | F58: 8.10 | G58: 199.57 | H58: 0.14 | I58: 0.20 | J58: 2.74 | K58: 2.27 | L58: 13.48 | M58: 104.60 | N58: 16.08 | O58: 1.70
A59: № 203 Сбор.рец. На прод-ию для обуч. Во всех образ.учреж-Дели 2017 | B59: Макаронные изделия отварные с маслом сливочным | C59: 150/5 | D59: 5.12 | E59: 4.53 | F59: 31.99 | G59: 189.30 | H59: 0.06 | I59: 0.00 | J59: 20.00 | K59: 0.82 | L59: 12.39 | M59: 38.67 | N59: 8.62 | O59: 0.86
A60: №349 Сбор.рец. На прод-ию для обуч. Во всех образ.учреж-Дели 2017 | B60: Компот из сухофруктов (75С) | C60: 200 | D60: 0.66 | E60: 0.09 | F60: 22.03 | G60: 92.90 | H60: 0.02 | I60: 0.73 | J60: 0.00 | K60: 0.51 | L60: 32.48 | M60: 23.44 | N60: 17.46 | O60: 0.70
A61: Хим.состав и калорийность российских продуктов питания,табл 6, стр 144 , 2012 Дели + | B61: Хлеб ржаной | C61: 30 | D61: 1.98 | E61: 0.81 | F61: 26.73 | G61: 133.65 | H61: 0.11 | I61: 0.00 | J61: 0.00 | K61: 0.95 | L61: 19.58 | M61: 101.25 | N61: 31.73 | O61: 2.63 | P61: 0 | Q61: 0
B62: Итого: | C62: 535 | D62: =D57+D58+D59+D60+D61 -> 18.55 | E62: =E57+E58+E59+E60+E61 -> 19.33 | F62: =F57+F59+F60+F61 -> 85.86 | G62: =G58+G59+G60+G61 -> 615.42 | H62: =H57+H58+H59+H60+H61 -> 0.36 | I62: 3.55 | J62: 22.74 | K62: 4.75 | L62: 92.32 | M62: 294.67 | N62: 92.12 | O62: 6.53 | P62: 0.00 | Q62: 0.00
B64: 2 день
A65: № 15 Сбор.рец. На прод-ию для обуч. Во всех образ.учреж-Дели -2017 | B65: Сыр порционно | C65: 10 | D65: 2.63 | E65: 2.66 | F65: 0.00 | G65: 34.33 | H65: 0.00 | I65: 0.07 | J65: 21.00 | K65: 0.04 | L65: 100.00 | M65: 60.00 | N65: 5.50 | O65: 0.07
A66: № 294 Сбор.рец. На прод-ию для обуч. Во всех образ.учреж-Дели -2017 | B66: Котлеты из мяса кур | C66: 90 | D66: 9.60 | E66: 8.66 | F66: 19.79 | G66: 179.80 | H66: 0.09 | I66: 0.94 | J66: 46.26 | K66: 2.52 | L66: 47.83 | M66: 85.09 | N66: 18.72 | O66: 1.26
A67: № 171 Сбор.рец. На прод-ию для обуч. Во всех образ.учреж-Дели 2017 | B67: Каша гречневая рассыпчатая с маслом сливочным | C67: 150/5 | D67: 4.61 | E67: 6.92 | F67: 27.79 | G67: 207.00 | H67: 0.21 | I67: 0.00 | J67: 20.00 | K67: 0.45 | L67: 25.19 | M67: 208.85 | N67: 140.52 | O67: 4.72
A68: № 377 Сбор.рец. На прод-ию для обуч. Во всех образ.учреж-Дели 2017 | B68: Чай с сахаром, с лимоном | C68: 185/10/5 | D68: 0.13 | E68: 0.02 | F68: 10.20 | G68: 42.00 | I68: 2.83 | K68: 0.01 | L68: 14.05 | M68: 4.40 | N68: 2.40 | O68: 0.34
A69: Хим.состав и калорийность российских продуктов питания табл 6 стр 134 , 2012 Дели + | B69: Хлеб пшеничный | C69: 50 | D69: 3.08 | E69: 0.40 | F69: 24.60 | G69: 117.50 | H69: 0.06 | I69: 0.00 | J69: 0.00 | K69: 0.55 | L69: 10.00 | M69: 32.50 | N69: 7.00 | O69: 0.55
B70: Итого: | C70: 505 | D70: =D65+D66+D67+D68+D69 -> 20.05 | E70: =E65+E66+E67+E68+E69+E69 -> 19.06 | F70: =SUM(F65:F69) -> 82.38 | G70: 580.63 | H70: 0.36 | I70: 3.84 | J70: 87.26 | K70: 3.57 | L70: 197.07 | M70: 390.84 | N70: 174.14 | O70: 6.94 | P70: 25% | Q70: 25%
B83: 3 день
A84: Хим.состав и калорийность российских продуктов питания табл 9 стр 184 , 2012 Дели + | B84: Плоды и ягоды свежие (апельсины) | C84: 100 | D84: 0.9 | E84: 0.2 | F84: 8.1 | G84: 43 | H84: 0.04 | I84: 60 | K84: 0.2 | L84: 34 | M84: 23 | N84: 13 | O84: 0.3
A85: № 293 Сбор.рец. На прод-ию для обуч. Во всех образ.учреж-Дели 2017, 366/2016 | B85: Куриные бедра запеченные с томатным соусом | C85: 90/20 | D85: 12.00 | E85: 10.04 | F85: 1.60 | G85: 195.10 | H85: 0.10 | I85: 3.04 | J85: 64.92 | K85: 1.70 | L85: 47.55 | M85: 162.01 | N85: 24.73 | O85: 1.65
A86: № 304 Сбор.рец. На прод-ию для обуч. Во всех образ.учреж-Дели 2017 | B86: Рис отварной рассыпчатый с маслом сливочным | C86: 150/5 | D86: 3.70 | E86: 9.00 | F86: 36.74 | G86: 212.70 | H86: 0.03 | I86: 0.00 | J86: 20.00 | K86: 0.33 | L86: 2.57 | M86: 62.45 | N86: 16.34 | O86: 0.54
A87: № 376 Сбор.рец. На прод-ию для обуч. Во всех образ.учреж-Дели 2017 | B87: Чай с сахаром | C87: 190/10 | D87: 0.07 | E87: 0.02 | F87: 10.00 | G87: 40.00 | I87: 0.03 | L87: 10.95 | M87: 2.80 | N87: 1.40 | O87: 0.26
A88: Хим.состав и калорийность российских продуктов питания табл 6 стр 134 , 2012 Дели + | B88: Хлеб пшеничный | C88: 30 | D88: 2.280 | E88: 0.240 | F88: 14.760 | G88: 71 | H88: 0.033 | I88: 0 | J88: 0 | K88: 0.330 | L88: 6.000 | M88: 19.500 | N88: 4.200 | O88: 0.330
A89: Хим.состав и калорийность российских продуктов питания,табл 6, стр 144 , 2012 Дели + | B89: Хлеб ржаной | C89: 20 | D89: 1.32 | E89: 0.24 | F89: 7.92 | G89: 39.60 | H89: 0.03 | I89: 0.00 | J89: 0.00 | K89: 0.28 | L89: 5.80 | M89: 30.00 | N89: 9.40 | O89: 0.78
B90: Итого: | C90: 615 | D90: =D85+D86+D87+D88++D89 -> 19.37 | E90: =E85+E86+E87+E88++E89 -> 19.54 | F90: =F84+F85+F85+F86+F87+F88++F89 -> 80.73 | G90: =G84+G85+G86+G87+G88++G89 -> 600.90 | H90: 0.20 | I90: 3.07 | J90: 84.92 | K90: 2.64 | L90: 72.87 | M90: 276.76 | N90: 56.07 | O90: 3.56 | P90: 25% | Q90: 25%
B92: 4 день
A93: № 46 Сбор.рец. На прод-ию для обуч. Во всех образ.учреж-Дели -2017 | B93: Салат из белокочанной капусты с яблоками | C93: 60 | D93: 0.07 | E93: 3.06 | F93: 6.70 | G93: 54.06 | H93: 0.02 | I93: 10.12 | J93: 0.00 | K93: 9.24 | L93: 20.09 | M93: 17.61 | N93: 9.60 | O93: 0.59
A94: № 229 Сбор.рец. На прод-ию для обуч. Во всех образ.учреж-Дели 2017 | B94: Рыба, тушенная в томате с овощами | C94: 50/50 | D94: 11.30 | E94: 4.95 | F94: 3.80 | G94: 105.00 | H94: 0.05 | I94: 3.73 | J94: 5.82 | K94: 2.52 | L94: 39.07 | M94: 162.19 | N94: 48.53 | O94: 0.85
A95: № 312 Сбор.рец. На прод-ию для обуч. Во всех образ.учреж-Дели -2017 | B95: Пюре картофельное с маслом сливочным | C95: 150/5 | D95: 3.10 | E95: 8.43 | F95: 20.51 | G95: 170.25 | H95: 0.14 | I95: 18.16 | J95: 20.00 | K95: 0.23 | L95: 38.18 | M95: 88.10 | N95: 27.75 | O95: 1.02
A96: № 342 Сбор.рец. На прод-ию для обуч. Во всех образ.учреж-Дели 2017 | B96: Компот из свежих яблок (75 С) | C96: 200 | D96: 0.16 | E96: 0.16 | F96: 13.91 | G96: 58.74 | H96: 0.01 | I96: 0.90 | J96: 0.00 | K96: 0.08 | L96: 14.18 | M96: 4.40 | N96: 5.14 | O96: 0.95
A97: Хим.состав и калорийность российских продуктов питания табл 6 стр 134 , 2012 Дели + | B97: Хлеб пшеничный | C97: 30 | D97: 2.280 | E97: 0.240 | F97: 14.760 | G97: 71 | H97: 0.033 | I97: 0 | J97: 0 | K97: 0.330 | L97: 6.000 | M97: 19.500 | N97: 4.200 | O97: 0.330
A98: Хим.состав и калорийность российских продуктов питания,табл 6, стр 144 , 2012 Дели + | B98: Хлеб ржаной | C98: 20 | D98: 1.32 | E98: 0.24 | F98: 7.92 | G98: 39.60 | H98: 0.03 | I98: 0.00 | J98: 0.00 | K98: 0.28 | L98: 5.80 | M98: 30.00 | N98: 9.40 | O98: 0.78
B99: Итого: | C99: 565 | D99: =D93+D94+D95+D96 -> 14.63 | E99: =E93+E94+E95+E96 -> 16.60 | F99: =F93+F94+F95+F96+F97 -> 59.68 | G99: =G93+G94+G95+G96+G98 -> 427.65 | H99: 0.22 | I99: 32.91 | J99: 25.82 | K99: 12.07 | L99: 111.52 | M99: 272.29 | N99: 91.02 | O99: 3.41 | P99: 20% | Q99: 25%
B101: 5 день
A102: № 62 Сбор.рец. На прод-ию для обуч. Во всех образ.учреж-Дели -2017 | B102: Салат из моркови с сахаром | C102: 60 | D102: 0.74 | E102: 0.06 | F102: 6.58 | G102: 49.02 | H102: 0.03 | I102: 2.02 | J102: 0.00 | K102: 8.04 | L102: 15.46 | M102: 31.66 | N102: 21.63 | O102: 0.40
A103: № 271 Сбор.рец. На прод-ию для обуч. Во всех образ.учреж-Дели 2017 | B103: Котлеты говяжьи | C103: 90 | D103: 10.18 | E103: 13.75 | F103: 11.77 | G103: 183.40 | H103: 0.05 | I103: 0.00 | J103: 0.00 | K103: 3.11 | L103: 9.38 | M103: 150.08 | N103: 27.54 | O103: 2.41
A104: № 199 Сбор.рец. На прод-ию для обуч. Во всех образ.учреж-Дели 2017 | B104: Гороховое пюре с маслом сливочным | C104: 150/5 | D104: 3.62 | E104: 5.04 | F104: 34.99 | G104: 208.50 | H104: 0.50 | I104: 0.00 | J104: 20.00 | K104: 0.50 | L104: 94.11 | M104: 212.33 | N104: 61.70 | O104: 4.69
A105: № 376 Сбор.рец. На прод-ию для обуч. Во всех образ.учреж-Дели 2017 | B105: Чай с мармеладом | C105: 185/15 | D105: 0.09 | E105: 0.02 | F105: 11.91 | G105: 48.15 | I105: 0.03 | L105: 11.25 | M105: 2.95 | N105: 1.70 | O105: 0.29
A106: Хим.состав и калорийность российских продуктов питания табл 6 стр 134 , 2012 Дели + | B106: Хлеб пшеничный | C106: 30 | D106: 2.28 | E106: 0.24 | F106: 14.76 | G106: 70.50 | H106: 0.03 | I106: 0.00 | J106: 0.00 | K106: 0.33 | L106: 6.00 | M106: 19.50 | N106: 4.20 | O106: 0.33
A107: Хим.состав и калорийность российских продуктов питания,табл 6, стр 144 , 2012 Дели + | B107: Хлеб ржаной | C107: 20 | D107: 1.320 | E107: 0.24 | F107: 7.920 | G107: 40 | H107: 0.034 | I107: 0 | J107: 0 | K107: 0.280 | L107: 5.800 | M107: 30.000 | N107: 9.400 | O107: 0.780
B108: Итого: | C108: 555 | D108: =D102+D103+D104+D105++D105+D106+D107 -> 18.32 | E108: =E102+E103+E104+E105+E106+E107 -> 19.35 | F108: =F102+F103+F104+F105+F106+F107 -> 87.93 | G108: =G102+G103+G104+G105+G106+G107 -> 599.17 | H108: =H102+H103+H104+H105+H106+H107 -> 0.65 | I108: 2.05 | J108: 20.00 | K108: 12.26 | L108: 141.99 | M108: 446.52 | N108: 126.16 | O108: 8.90 | P108: 25% | Q108: 25%
B112: 6 день
A113: Хим.состав и калорийность российских продуктов питания табл 9 стр 184 , 2012 Дели + | B113: Плоды и ягоды свежие (яблоки) | C113: 100 | D113: 0.40 | E113: 0.40 | F113: 9.80 | G113: 47.00 | H113: 0.03 | I113: 10.00 | K113: 0.20 | L113: 16.00 | M113: 11.00 | N113: 9.00 | O113: 2.20
A114: № 15 Сбор.рец. На прод-ию для обуч. Во всех образ.учреж-Дели 2017 | B114: Сыр порционно | C114: 10 | D114: 2.03 | E114: 2.63 | F114: 0.00 | G114: 34.33 | H114: 0.00 | I114: 0.07 | J114: 21.00 | K114: 0.04 | L114: 100.00 | M114: 60.00 | N114: 5.50 | O114: 0.07
A115: № 390,391,392 Сбор.рец. На прод-ию для обуч. Во всех образ.учреж-Дели 2017 | B115: Пельмени мясные отварные с маслом сливочным | C115: 170/5 | D115: 14.04 | E115: 15.868 | F115: 40.822 | G115: 346 | H115: 0.145 | I115: 0.333 | J115: 38.547 | K115: 0.007264957265 | L115: 21.021 | M115: 109.791 | N115: 31.778 | O115: 0.831
A116: № 376 Сбор.рец. На прод-ию для обуч. Во всех образ.учреж-Дели 2017 | B116: Чай с сахаром | C116: 190/10 | D116: 0.07 | E116: 0.02 | F116: 10.00 | G116: 40.00 | I116: 0.03 | L116: 10.95 | M116: 2.80 | N116: 1.40 | O116: 0.26
A117: Хим.состав и калорийность российских продуктов питания табл 6 стр 134 , 2012 Дели + | B117: Хлеб пшеничный | C117: 40 | D117: 3.04 | E117: 0.32 | F117: 19.68 | G117: 94.00 | H117: 0.04 | I117: 0.00 | J117: 0.00 | K117: 0.44 | L117: 8.00 | M117: 26.00 | N117: 5.60 | O117: 0.44
B118: Итого: | C118: 525 | D118: =SUM(D113:D117) -> 19.58 | E118: =SUM(E113:E117) -> 19.24 | F118: =SUM(F113:F117) -> 80.30 | G118: =SUM(G113:G117) -> 561.58 | H118: 0.22 | I118: 10.43 | J118: 59.55 | K118: 0.69 | L118: 155.97 | M118: 209.59 | N118: 53.28 | O118: 3.80 | P118: 25% | Q118: 25%
A161: № рецептуры | B161: Наименование блюд | C161: Выход,г | D161: Белки, г | E161: Жиры, г | F161: Углеводы, г | G161: Калорийность, ккал | H161: Витамин B1, мг | I161: Витамин С, мг | J161: Витамин А, мг | K161: Витамин Е, мг | L161: Ca, мг | M161: P, мг | N161: Mg, мг | O161: Fe, мг
B162: 2-ая неделя
B163: 1 день
A164: Хим.состав и калорийность российских продуктов питания табл 9 стр 184 , 2012 Дели + | B164: Плоды и ягоды свежие (яблоки) | C164: 100 | D164: 0.40 | E164: 0.40 | F164: 9.80 | G164: 47.00 | H164: 0.03 | I164: 10.00 | K164: 0.20 | L164: 16.00 | M164: 11.00 | N164: 9.00 | O164: 2.20
A165: №293 Сбор.рец. На прод-ию для обуч. Во всех образ.учреж-Дели 2017 | B165: Птица запеченная | C165: 90 | D165: 10.690 | E165: 15.964 | F165: 0.000 | G165: 202 | H165: 0.072 | I165: 2.430 | J165: 96.48 | K165: 1.908 | L165: 48.690 | M165: 171.522 | N165: 22.428 | O165: 1.980
A166: № 203 Сбор.рец. На прод-ию для обуч. Во всех образ.учреж-Дели 2017 | B166: Макаронные изделия отварные с маслом сливочным | C166: 150/3 | D166: 5.10 | E166: 2.85 | F166: 31.96 | G166: 186.10 | H166: 0.06 | I166: 0.00 | J166: 12.00 | K166: 0.80 | L166: 11.91 | M166: 38.07 | N166: 8.62 | O166: 0.86
A167: № 376 Сбор.рец. На прод-ию для обуч. Во всех образ.учреж-Дели 2017 | B167: Чай с сахаром,с яблоком | C167: 180/10/10 | D167: 0.110 | E167: 0.060 | F167: 10.990 | G167: 45 | H167: 0.003 | I167: 1.030 | K167: 0.020 | L167: 12.700 | M167: 3.900 | N167: 2.300 | O167: 0.500
A168: Хим.состав и калорийность российских продуктов питания табл 6 стр 134 , 2012 Дели + | B168: Хлеб пшеничный | C168: 20 | D168: 1.520 | E168: 0.160 | F168: 9.840 | G168: 47 | H168: 0.022 | I168: 0 | J168: 0 | K168: 0.220 | L168: 4.000 | M168: 13.000 | N168: 2.800 | O168: 0.220
A169: Хим.состав и калорийность российских продуктов питания,табл 6, стр 144 , 2012 Дели + | B169: Хлеб ржаной | C169: 20 | D169: 1.320 | E169: 0.240 | F169: 7.920 | G169: 40 | H169: 0.034 | I169: 0 | J169: 0 | K169: 0.280 | L169: 5.800 | M169: 30.000 | N169: 9.400 | O169: 0.780
B170: Итого: | C170: 583 | D170: =SUM(D164:D169) -> 19.14 | E170: =SUM(E164:E169) -> 19.67 | F170: 79.67 | G170: =SUM(G164:G169) -> 566.75 | H170: 0.22 | I170: 13.46 | J170: 108.48 | K170: 3.43 | L170: 99.10 | M170: 267.49 | N170: 54.55 | O170: 6.54 | P170: 25% | Q170: 25%
B172: 2 день
A173: №3 Сбор.рец. На прод-ию для обуч. Во всех образ.учреж-Дели 2017 | B173: Бутерброд с маслом сливочным и сыром | C173: 60 | D173: 7.03 | E173: 7.94 | F173: 19.75 | G173: 178.50 | H173: 0.05 | I173: 0.11 | J173: 51.50 | K173: 0.56 | L173: 159.20 | M173: 117.50 | N173: 13.85 | O173: 0.56
A174: №143,241 Сбор.рец. На прод-ию для обуч. Во всех образ.учреж-Дели 2017 | B174: Овощи тушеные с мясом | C174: 50/150 | D174: 10.17 | E174: 12.60 | F174: 32.31 | G174: 292.17 | H174: 0.11 | I174: 18.78 | J174: 39.00 | K174: 0.00 | L174: 68.94 | M174: 172.79 | N174: 38.24 | O174: 2.68
A175: № 376 Сбор.рец. На прод-ию для обуч. Во всех образ.учреж-Дели 2017 | B175: Чай с мармеладом | C175: 185/15 | D175: 0.09 | E175: 0.02 | F175: 11.91 | G175: 48.15 | I175: 0.03 | L175: 11.25 | M175: 2.95 | N175: 1.70 | O175: 0.29
A176: Хим.состав и калорийность российских продуктов питания,табл 6, стр 144 , 2012 Дели + | B176: Хлеб ржаной | C176: 40 | D176: 2.64 | E176: 0.48 | F176: 15.84 | G176: 79.20 | H176: 0.07 | I176: 0.00 | J176: 0.00 | K176: 0.56 | L176: 11.60 | M176: 60.00 | N176: 18.80 | O176: 1.56 | P176: 0 | Q176: 0%
B177: Итого: | C177: 500 | D177: =D173+D174+D175+D176 -> 19.93 | E177: =E173+E174+E175 -> 20.56 | F177: =F173+F174+F175+F176 -> 79.81 | G177: 598.02 | H177: 0.23 | I177: 18.92 | J177: 90.50 | K177: 1.12 | L177: 250.99 | M177: 353.24 | N177: 72.59 | O177: 5.09 | P177: 25% | Q177: 25%
B179: 3 день
A180: № 52 Сбор.рец. На прод-ию для обуч. Во всех образ.учреж-Дели -2017 | B180: Салат из свеклы отварной | C180: 60 | D180: 0.84 | E180: 3.61 | F180: 4.96 | G180: 55.68 | H180: 0.01 | I180: 3.99 | J180: 0.00 | K180: 1.62 | L180: 21.28 | M180: 24.38 | N180: 12.42 | O180: 0.79
A181: № 294 Сбор.рец. На прод-ию для обуч. Во всех образ.учреж-Дели -2017 | B181: Котлеты из мяса кур | C181: 90 | D181: 11.85 | E181: 8.06 | F181: 18.53 | G181: 198.00 | H181: 0.18 | I181: 0.81 | J181: 12.42 | K181: 61.47 | L181: 51.64 | M181: 69.30 | N181: 19.98 | O181: 3.24
A182: № 312 Сбор.рец. На прод-ию для обуч. Во всех образ.учреж-Дели -2017 | B182: Пюре картофельное с маслом сливочным | C182: 150/5 | D182: 3.13 | E182: 8.43 | F182: 20.51 | G182: 170.25 | H182: 0.14 | I182: 18.16 | J182: 20.00 | K182: 0.23 | L182: 38.18 | M182: 88.10 | N182: 27.75 | O182: 1.02
A183: № 376 Сбор.рец. На прод-ию для обуч. Во всех образ.учреж-Дели 2017 | B183: Чай с сахаром | C183: 190/10 | D183: 0.07 | E183: 0.02 | F183: 10.00 | G183: 40.00 | I183: 0.03 | L183: 10.95 | M183: 2.80 | N183: 1.40 | O183: 0.26
A184: Хим.состав и калорийность российских продуктов питания табл 6 стр 134 , 2012 Дели + | B184: Хлеб пшеничный | C184: 35 | D184: 2.660 | E184: 0.280 | F184: 17.220 | G184: 82 | H184: 0.039 | I184: 0 | J184: 0 | K184: 0.385 | L184: 7.000 | M184: 22.750 | N184: 4.900 | O184: 0.385
A185: Хим.состав и калорийность российских продуктов питания,табл 6, стр 144 , 2012 Дели + | B185: Хлеб ржаной | C185: 25 | D185: 1.650 | E185: 0.300 | F185: 9.900 | G185: 50 | H185: 0.043 | I185: 0 | J185: 0 | K185: 0.350 | L185: 7.250 | M185: 37.500 | N185: 11.750 | O185: 0.975
B186: Итого: | C186: 565 | D186: =SUM(D180:D185) -> 20.20 | E186: =SUM(E180:E185) -> 20.70 | F186: 81.11 | G186: 595.68 | H186: 0.41 | I186: 22.99 | J186: 32.42 | K186: 64.06 | L186: 136.30 | M186: 244.82 | N186: 78.20 | O186: 6.67 | P186: 25% | Q186: 25%
B188: 4 день
A189: Хим.состав и калорийность российских продуктов питания табл 9 стр 184 , 2012 Дели + | B189: Плоды и ягоды свежие (апельсины) | C189: 100 | D189: 0.90 | E189: 0.20 | F189: 8.10 | G189: 43.00 | H189: 0.04 | I189: 60.00 | K189: 0.20 | L189: 34.00 | M189: 23.00 | N189: 13.00 | O189: 0.30
A190: №279,331 Сбор.рец. На прод-ию для питания детей в дошк образоват учрежд-Дели 2017 | B190: Тефтели мясные в сметанно-томатном соусе | C190: 60/40 | D190: 7.284 | E190: 11.790 | F190: 8.738 | G190: 133.99 | H190: 0.048 | I190: 0.276 | J190: 29.620 | K190: 0.421 | L190: 20.726 | M190: 80.202 | N190: 15.521 | O190: 0.640
A191: № 203 Сбор.рец. На прод-ию для обуч. Во всех образ.учреж-Дели 2017 | B191: Макаронные изделия отварные с маслом сливочным | C191: 150/3 | D191: 5.10 | E191: 2.85 | F191: 31.96 | G191: 176.10 | H191: 0.06 | I191: 0.00 | J191: 12.00 | K191: 0.80 | L191: 11.91 | M191: 38.07 | N191: 8.62 | O191: 0.86
A192: ТТК | B192: Напиток из свежих фруктов (75С) | C192: 200 | D192: 0.34 | E192: 0.17 | F192: 11.48 | G192: 63.60 | H192: 0.02 | I192: 3.17 | J192: 0.00 | K192: 0.13 | L192: 16.67 | M192: 7.05 | N192: 7.78 | O192: 0.88
A193: Хим.состав и калорийность российских продуктов питания табл 6 стр 134 , 2012 Дели + | B193: Хлеб пшеничный | C193: 20 | D193: 1.520 | E193: 0.160 | F193: 9.840 | G193: 47 | H193: 0.022 | I193: 0 | J193: 0 | K193: 0.220 | L193: 4.000 | M193: 13.000 | N193: 2.800 | O193: 0.220
B194: Итого: | C194: 573 | D194: =SUM(D189:D193) -> 15.14 | E194: =SUM(E189:E193) -> 15.17 | F194: =SUM(F189:F193) -> 70.12 | G194: 463.69 | H194: 0.19 | I194: 63.45 | J194: 41.62 | K194: 1.77 | L194: 87.31 | M194: 161.32 | N194: 47.72 | O194: 2.90 | P194: 20% | Q194: 20%
B196: 5 день
A197: ТТК | B197: Салат из свежей капусты с кукурузой к/с | C197: 60 | D197: 0.94 | E197: 2.24 | F197: 4.04 | G197: 40.13 | H197: 0.02 | I197: 9.48 | J197: 0.00 | K197: 4.48 | L197: 14.35 | M197: 19.93 | N197: 9.50 | O197: 0.30
A198: № 280/331 Сбор.рец. На прод-ию для обуч. Во всех образ.учреж-Дели -2017 | B198: Фрикадельки в сметанно-томатном соусе | C198: 55/50 | D198: 8.50 | E198: 11.21 | F198: 10.61 | G198: 180.00 | H198: 0.04 | I198: 0.27 | J198: 16.31 | K198: 2.67 | L198: 24.45 | M198: 79.59 | N198: 14.19 | O198: 5.29
A199: № 171 Сбор.рец. На прод-ию для обуч. Во всех образ.учреж-Дели 2017 | B199: Каша гречневая рассыпчатая с маслом сливочным | C199: 150/5 | D199: 8.21 | E199: 8.72 | F199: 38.71 | G199: 276.75 | H199: 0.21 | I199: 0.00 | J199: 20.00 | K199: 0.66 | L199: 16.02 | M199: 205.43 | N199: 135.83 | O199: 4.57
A200: № 376 Сбор.рец. На прод-ию для обуч. Во всех образ.учреж-Дели 2017 | B200: Чай с сахаром,с яблоком | C200: 180/10/10 | D200: 0.11 | E200: 0.06 | F200: 10.990 | G200: 45 | H200: 0.003 | I200: 1.03 | K200: 0.02 | L200: 12.700 | M200: 3.9 | N200: 2.3 | O200: 0.500
A201: Хим.состав и калорийность российских продуктов питания табл 6 стр 134 , 2012 Дели + | B201: Хлеб пшеничный | C201: 20 | D201: 1.520 | E201: 0.160 | F201: 9.840 | G201: 47 | H201: 0.022 | I201: 0 | J201: 0 | K201: 0.220 | L201: 4.000 | M201: 13.000 | N201: 2.800 | O201: 0.220
A202: Хим.состав и калорийность российских продуктов питания,табл 6, стр 144 , 2012 Дели + | B202: Хлеб ржаной | C202: 20 | D202: 1.320 | E202: 0.240 | F202: 7.920 | G202: 40 | H202: 0.034 | I202: 0 | J202: 0 | K202: 0.280 | L202: 5.800 | M202: 30.000 | N202: 9.400 | O202: 0.780 | P202: 0 | Q202: 0
B203: Итого: | C203: 560 | D203: =D198+D199+D200+D201+D202 -> 19.66 | E203: =E198+E199+E200+E201+E202 -> 20.39 | F203: =F197+F198+F199+F200+F201+F202 -> 82.11 | G203: 588.40 | H203: 0.31 | I203: 1.30 | J203: 36.31 | K203: 3.85 | L203: 62.97 | M203: 331.92 | N203: 164.52 | O203: 11.36 | P203: =P197+P198+P199+P200+P202 -> 0.00 | Q203: =Q197+Q198+Q199+Q200+Q202 -> 0.00
B205: 6 день
A206: Хим.состав и калорийность российских продуктов питания табл 9 стр 184 , 2012 Дели + | B206: Плоды и ягоды свежие (яблоки) | C206: 100 | D206: 0.4 | E206: 0.4 | F206: 9.8 | G206: 47 | H206: 0.03 | I206: 10 | K206: 0.2 | L206: 16 | M206: 11 | N206: 9 | O206: 2.2
A207: № 390,391,392 Сбор.рец. На прод-ию для обуч. Во всех образ.учреж-Дели 2017 | B207: Пельмени мясные отварные с маслом сливочным | C207: 170/5 | D207: 14.840 | E207: 17.868 | F207: 40.822 | G207: 346.25 | H207: 0.145 | I207: 0.333 | J207: 38.547 | K207: 0.007 | L207: 21.021 | M207: 109.791 | N207: 31.778 | O207: 0.831
A208: № 376 Сбор.рец. На прод-ию для обуч. Во всех образ.учреж-Дели 2017 | B208: Чай с мармеладом | C208: 185/15 | D208: 0.09 | E208: 0.02 | F208: 11.91 | G208: 48.15 | I208: 0.03 | L208: 11.25 | M208: 2.95 | N208: 1.70 | O208: 0.29
A209: Хим.состав и калорийность российских продуктов питания табл 6 стр 134 , 2012 Дели + | B209: Хлеб пшеничный | C209: 25 | D209: 1.900 | E209: 0.200 | F209: 12.300 | G209: 59 | H209: 0.025 | I209: 0 | J209: 0 | K209: 0.275 | L209: 5.000 | M209: 16.250 | N209: 3.500 | O209: 0.275
A210: Хим.состав и калорийность российских продуктов питания,табл 6, стр 144 , 2012 Дели + | B210: Хлеб ржаной | C210: 30 | D210: 1.980 | E210: 0.360 | F210: 11.880 | G210: 59 | H210: 0.034 | I210: 0 | J210: 0 | K210: 0.280 | L210: 5.800 | M210: 30.000 | N210: 9.400 | O210: 0.780
B211: Итого: | C211: 530 | D211: =SUM(D206:D210) -> 19.21 | E211: =SUM(E206:E210) -> 18.85 | F211: 86.71 | G211: 559.55 | H211: 0.23 | I211: 10.36 | J211: 38.55 | K211: 0.76 | L211: 59.07 | M211: 169.99 | N211: 55.38 | O211: 4.38 | P211: 25% | Q211: 25%
B212: ВСЕГО за 12 дней: | C212: =C62+C70+C90+C99+C108+C118+C170+C177+C186+C194+C203+C211 -> 6611 | D212: 223.79 | E212: 228.46 | F212: 956.41 | G212: 6757.44 | H212: 3.60 | I212: 186.32 | J212: 648.16 | K212: 110.98 | L212: 1467.47 | M212: 3419.45 | N212: 1065.74 | O212: 70.07
B213: В среднем на 1 учащегося в день: | C213: =C212/12 -> 551 | D213: =D212/12 -> 18.65 | E213: 19.04 | F213: 79.70 | G213: 563.12 | H213: 0.30 | I213: 15.53 | J213: 54.01 | K213: 9.25 | L213: 122.29 | M213: 284.95 | N213: 88.81 | O213: 5.84 | P213: 25%

Sheet Меню старшие 5-11 кл Осень-Зима
B12: Согласовано | I12: Разработано и утвеждено
B13: Руководитель общеобразовательного учреждения | I13: Директор ООО "АБК- Пэймент"
B15: ________________________ | I15: ________________Р.Р.Рахматуллин
B20: Примерное цикличное двенадцатидневное меню
B21: Для организации питания обучающихся общеобразовательных организаций Республики Татарстан
B22: в возрасте с12лет и старше (5-11 классы)
B48: ПРИМЕРНОЕ ДВУХНЕДЕЛЬНОЕ МЕНЮ ДЛЯ ОБУЧАЮЩИХСЯ В ОБЩЕОБРАЗОВАТЕЛЬНЫХ ОРГАНИЗАЦИЯХ С 5 по 11 КЛАССЫ
B49: (общеобразовательные организации с режимом обучения до 6 часов)
A51: № рецептуры | B51: Наименование блюд | C51: Выход,г | D51: Белки, г | E51: Жиры, г | F51: Углеводы, г | G51: Калорийность, ккал | H51: Витамин B1, мг | I51: Витамин С, мг | J51: Витамин А, мг | K51: Витамин Е, мг | L51: Ca, мг | M51: P, мг | N51: Mg, мг | O51: Fe, мг
B52: 1-ая неделя
B53: 1 день
A54: № 59 Сбор.рец. На прод-ию для обуч. Во всех образ.учреж-Дели 2017 | B54: Салат из моркови с яблоками | C54: 100 | D54: 1.06 | E54: 0.17 | F54: 8.52 | G54: 39.90 | H54: 0.05 | I54: 4.38 | J54: 0.00 | K54: 0.35 | L54: 23.99 | M54: 44.53 | N54: 30.39 | O54: 1.07
A55: № 271 Сбор.рец. На прод-ию для обуч. Во всех образ.учреж-Дели 2017 | B55: Котлета домашняя из говядины | C55: 100 | D55: 11.28 | E55: 16.71 | F55: 9.00 | G55: 221.74 | H55: 0.15 | I55: 0.22 | J55: 3.04 | K55: 2.52 | L55: 14.98 | M55: 116.22 | N55: 17.87 | O55: 1.89
A56: № 203 Сбор.рец. На прод-ию для обуч. Во всех образ.учреж-Дели 2017 | B56: Макаронные изделия отварные с маслом сливочным | C56: 180/5 | D56: 6.83 | E56: 4.43 | F56: 38.37 | G56: 220.56 | H56: 0.07 | I56: 0.00 | J56: 20.00 | K56: 0.98 | L56: 14.63 | M56: 46.10 | N56: 10.34 | O56: 1.03
A57: №349 Сбор.рец. На прод-ию для обуч. Во всех образ.учреж-Дели 2017 | B57: Компот из сухофруктов (75С) | C57: 200 | D57: 0.66 | E57: 0.09 | F57: 22.03 | G57: 92.90 | H57: 0.02 | I57: 0.73 | J57: 0.00 | K57: 0.51 | L57: 32.48 | M57: 23.44 | N57: 17.46 | O57: 0.70
A58: Хим.состав и калорийность российских продуктов питания табл 6 стр 134 , 2012 Дели + | B58: Хлеб пшеничный | C58: 30 | D58: 2.280 | E58: 0.240 | F58: 14.760 | G58: 71 | H58: 0.033 | I58: 0 | J58: 0 | K58: 0.330 | L58: 6.000 | M58: 19.500 | N58: 4.200 | O58: 0.330
A59: Хим.состав и калорийность российских продуктов питания,табл 6, стр 144 , 2012 Дели + | B59: Хлеб ржаной | C59: 35 | D59: 2.31 | E59: 0.42 | F59: 13.86 | G59: 69.30 | H59: 0.06 | I59: 0.00 | J59: 0.00 | K59: 0.49 | L59: 10.15 | M59: 52.50 | N59: 16.45 | O59: 1.37
B60: Итого: | C60: 650 | D60: =D55+D56+D58+D59 -> 22.70 | E60: =E54+E55+E56+E57+E58+E59 -> 22.06 | F60: =F55+F56+F57+F58+F59 -> 98.02 | G60: =G55+G56+G57+G58+G59 -> 675.00 | H60: =H54+H55+H56+H58+H59 -> 0.37 | I60: 4.59 | J60: 23.04 | K60: 4.66 | L60: 69.75 | M60: 278.85 | N60: 79.25 | O60: 5.68 | P60: =P54+P55+P56+P57+P58+P59 -> 0.00 | Q60: =Q54+Q55+Q56+Q57+Q58+Q59 -> 0.00
B62: 2 день
A63: № 15 Сбор.рец. На прод-ию для обуч. Во всех образ.учреж-Дели -2017 | B63: Сыр порционно | C63: 10 | D63: 2.63 | E63: 2.66 | F63: 0.00 | G63: 34.33 | H63: 0.00 | I63: 0.07 | J63: 21.00 | K63: 0.04 | L63: 100.00 | M63: 60.00 | N63: 5.50 | O63: 0.07
A64: № 294 Сбор.рец. На прод-ию для обуч. Во всех образ.учреж-Дели -2017 | B64: Котлеты из мяса кур | C64: 100 | D64: 10.36 | E64: 13.29 | F64: 25.90 | G64: 233.11 | H64: 0.10 | I64: 1.04 | J64: 51.40 | K64: 2.80 | L64: 53.14 | M64: 94.54 | N64: 20.80 | O64: 1.40
A65: № 171 Сбор.рец. На прод-ию для обуч. Во всех образ.учреж-Дели 2015 | B65: Каша гречневая рассыпчатая с маслом сливочным | C65: 180/3 | D65: 5.55 | E65: 6.93 | F65: 37.71 | G65: 276.56 | H65: 0.25 | I65: 0.00 | J65: 11.98 | K65: 0.50 | L65: 29.51 | M65: 249.72 | N65: 168.62 | O65: 5.66
A66: № 377 Сбор.рец. На прод-ию для обуч. Во всех образ.учреж-Дели 2017 | B66: Чай с сахаром, с лимоном | C66: 185/10/5 | D66: 0.13 | E66: 0.02 | F66: 10.20 | G66: 42.00 | I66: 2.83 | K66: 0.01 | L66: 14.05 | M66: 4.40 | N66: 2.40 | O66: 0.34
A67: Хим.состав и калорийность российских продуктов питания табл 6 стр 134 , 2012 Дели + | B67: Хлеб пшеничный | C67: 20 | D67: 1.520 | E67: 0.160 | F67: 9.840 | G67: 47 | H67: 0.022 | I67: 0 | J67: 0 | K67: 0.220 | L67: 4.000 | M67: 13.000 | N67: 2.800 | O67: 0.220
A68: Хим.состав и калорийность российских продуктов питания,табл 6, стр 144 , 2012 Дели + | B68: Хлеб ржаной | C68: 40 | D68: 2.64 | E68: 0.48 | F68: 15.84 | G68: 79.20 | H68: 0.07 | I68: 0.00 | J68: 0.00 | K68: 0.56 | L68: 11.60 | M68: 60.00 | N68: 18.80 | O68: 1.56
B69: Итого: | C69: 553 | D69: =SUM(D63:D68) -> 22.83 | E69: =SUM(E63:E68) -> 23.54 | F69: 99.49 | G69: 712.20 | H69: 0.45 | I69: 3.94 | J69: 84.38 | K69: 4.13 | L69: 212.30 | M69: 481.66 | N69: 218.92 | O69: 9.25 | P69: 25% | Q69: 25%
B71: 3 день
A72: № 293 Сбор.рец. На прод-ию для обуч. Во всех образ.учреж-Дели 2017, 366/2016 | B72: Куриные бедра запеченные с томатным соусом | C72: 90/20 | D72: 12.00 | E72: 10.04 | F72: 1.60 | G72: 195.10 | H72: 0.10 | I72: 3.04 | J72: 64.92 | K72: 1.70 | L72: 47.55 | M72: 162.01 | N72: 24.73 | O72: 1.65
A73: № Сбор.рец. На прод-ию для обуч. Во всех образ.учреж-Дели 2017 | B73: Рис отварной рассыпчатый | C73: 180 | D73: 5.45 | E73: 11.45 | F73: 44.12 | G73: 262.64 | H73: 0.03 | I73: 0.00 | J73: 0.00 | K73: 0.34 | L73: 1.64 | M73: 73.13 | N73: 19.60 | O73: 0.63
A74: № 376 Сбор.рец. На прод-ию для обуч. Во всех образ.учреж-Дели 2017 | B74: Чай с сахаром | C74: 190/10 | D74: 0.07 | E74: 0.02 | F74: 10.00 | G74: 40.00 | I74: 0.03 | L74: 10.95 | M74: 2.80 | N74: 1.40 | O74: 0.26
A75: Хим.состав и калорийность российских продуктов питания табл 6 стр 134 , 2012 Дели + | B75: Хлеб пшеничный | C75: 40 | D75: 3.040 | E75: 0.320 | F75: 19.680 | G75: 94 | H75: 0.044 | I75: 0 | J75: 0 | K75: 0.440 | L75: 8.000 | M75: 26.000 | N75: 5.600 | O75: 0.440
A76: Хим.состав и калорийность российских продуктов питания,табл 6, стр 144 , 2012 Дели + | B76: Хлеб ржаной | C76: 40 | D76: 2.64 | E76: 0.48 | F76: 15.84 | G76: 79.20 | H76: 0.07 | I76: 0.00 | J76: 0.00 | K76: 0.56 | L76: 11.60 | M76: 60.00 | N76: 18.80 | O76: 1.56
B77: Итого: | C77: 570 | D77: =SUM(D72:D76) -> 23.20 | E77: =SUM(E72:E76) -> 22.31 | F77: 91.24 | G77: 670.94 | H77: 0.25 | I77: 3.07 | J77: 64.92 | K77: 3.04 | L77: 79.73 | M77: 323.94 | N77: 70.14 | O77: 4.54 | P77: 25% | Q77: 25%
B79: 4 день
A80: № 46 Сбор.рец. На прод-ию для обуч. Во всех образ.учреж-Дели -2017 | B80: Салат из белокочанной капусты с яблоками | C80: 100 | D80: 0.12 | E80: 5.10 | F80: 11.17 | G80: 90.10 | H80: 0.03 | I80: 16.87 | J80: 0.00 | K80: 15.40 | L80: 33.49 | M80: 29.35 | N80: 16.00 | O80: 0.98
A81: № 229 Сбор.рец. На прод-ию для обуч. Во всех образ.учреж-Дели 2017 | B81: Рыба, тушенная в томате с овощами | C81: 50/50 | D81: 11.30 | E81: 4.95 | F81: 3.80 | G81: 105.00 | H81: 0.05 | I81: 3.73 | J81: 5.82 | K81: 2.52 | L81: 39.07 | M81: 162.19 | N81: 48.53 | O81: 0.85
A82: № 312 Сбор.рец. На прод-ию для обуч. Во всех образ.учреж-Дели -2017 | B82: Пюре картофельное с маслом сливочным | C82: 180/3 | D82: 3.71 | E82: 7.95 | F82: 24.57 | G82: 184.50 | H82: 0.17 | I82: 21.79 | J82: 12.00 | K82: 0.25 | L82: 45.09 | M82: 104.81 | N82: 33.30 | O82: 1.16
A83: № 342 Сбор.рец. На прод-ию для обуч. Во всех образ.учреж-Дели 2017 | B83: Компот из свежих яблок (75 С) | C83: 200 | D83: 0.16 | E83: 0.16 | F83: 13.91 | G83: 58.74 | H83: 0.01 | I83: 0.90 | J83: 0.00 | K83: 0.08 | L83: 14.18 | M83: 4.40 | N83: 5.14 | O83: 0.95
A84: Хим.состав и калорийность российских продуктов питания табл 6 стр 134 , 2012 Дели + | B84: Хлеб пшеничный | C84: 20 | D84: 1.520 | E84: 0.160 | F84: 9.840 | G84: 47 | H84: 0.022 | I84: 0 | J84: 0 | K84: 0.220 | L84: 4.000 | M84: 13.000 | N84: 2.800 | O84: 0.220
A85: Хим.состав и калорийность российских продуктов питания,табл 6, стр 144 , 2012 Дели + | B85: Хлеб ржаной | C85: 25 | D85: 1.65 | E85: 0.30 | F85: 9.90 | G85: 49.50 | H85: 0.04 | I85: 0.00 | J85: 0.00 | K85: 0.35 | L85: 7.25 | M85: 37.50 | N85: 11.75 | O85: 0.98
B86: Итого: | C86: 628 | D86: =D80+D81+D82+D83+D84+D85 -> 18.46 | E86: 18.62 | F86: 73.19 | G86: 534.84 | H86: 0.33 | I86: 43.29 | J86: 17.82 | K86: 18.82 | L86: 143.08 | M86: 351.25 | N86: 117.52 | O86: 5.14 | P86: 20% | Q86: 20%
B88: 5 день
A89: № 62 Сбор.рец. На прод-ию для обуч. Во всех образ.учреж-Дели -2017 | B89: Салат из моркови с сахаром | C89: 100 | D89: 1.233 | E89: 0.094 | F89: 11.476 | G89: 81.7 | H89: 0.057 | I89: 3.36 | J89: 0 | K89: 13.4 | L89: 25.76 | M89: 52.766 | N89: 36.047 | O89: 0.664
A90: № 271 Сбор.рец. На прод-ию для обуч. Во всех образ.учреж-Дели 2017 | B90: Котлеты говяжьи | C90: 100 | D90: 12.76 | E90: 15.28 | F90: 13.08 | G90: 206.00 | H90: 0.06 | I90: 0.00 | J90: 0.00 | K90: 3.46 | L90: 10.42 | M90: 166.76 | N90: 30.60 | O90: 2.68
A91: № 199 Сбор.рец. На прод-ию для обуч. Во всех образ.учреж-Дели 2017 | B91: Гороховое пюре с маслом сливочным | C91: 180/5 | D91: 4.33 | E91: 6.32 | F91: 41.97 | G91: 229.60 | H91: 0.59 | I91: 0.00 | J91: 20.00 | K91: 0.59 | L91: 112.69 | M91: 254.49 | N91: 74.03 | O91: 5.63
A92: № 376 Сбор.рец. На прод-ию для обуч. Во всех образ.учреж-Дели 2017 | B92: Чай с мармеладом | C92: 185/15 | D92: 0.09 | E92: 0.02 | F92: 11.91 | G92: 48.15 | I92: 0.03 | L92: 11.25 | M92: 2.95 | N92: 1.70 | O92: 0.29
A93: Хим.состав и калорийность российских продуктов питания табл 6 стр 134 , 2012 Дели + | B93: Хлеб пшеничный | C93: 20 | D93: 1.520 | E93: 0.160 | F93: 9.840 | G93: 47 | H93: 0.022 | I93: 0 | J93: 0 | K93: 0.220 | L93: 4.000 | M93: 13.000 | N93: 2.800 | O93: 0.220
A94: Хим.состав и калорийность российских продуктов питания,табл 6, стр 144 , 2012 Дели + | B94: Хлеб ржаной | C94: 30 | D94: 1.98 | E94: 0.36 | F94: 11.88 | G94: 59.40 | H94: 0.05 | I94: 0.00 | J94: 0.00 | K94: 0.42 | L94: 8.70 | M94: 45.00 | N94: 14.10 | O94: 1.17
B95: Итого: | C95: 635 | D95: =SUM(D89:D94) -> 21.91 | E95: =SUM(E89:E94) -> 22.24 | F95: 100.16 | G95: 671.85 | H95: 0.78 | I95: 3.39 | J95: 20.00 | K95: 18.09 | L95: 172.82 | M95: 534.97 | N95: 159.28 | O95: 10.65 | P95: 25% | Q95: 25%
B98: 6 день
A99: Хим.состав и калорийность российских продуктов питания табл 9 стр 184 , 2012 Дели + | B99: Плоды и ягоды свежие (яблоки) | C99: 100 | D99: 0.40 | E99: 0.40 | F99: 9.80 | G99: 47.00 | H99: 0.03 | I99: 10.00 | K99: 0.20 | L99: 16.00 | M99: 11.00 | N99: 9.00 | O99: 2.20
A100: № 15 Сбор.рец. На прод-ию для обуч. Во всех образ.учреж-Дели 2017 | B100: Сыр порционно | C100: 10 | D100: 2.03 | E100: 2.63 | F100: 0.00 | G100: 34.33 | H100: 0.00 | I100: 0.07 | J100: 21.00 | K100: 0.04 | L100: 100.00 | M100: 60.00 | N100: 5.50 | O100: 0.07
A101: № 390,391,392 Сбор.рец. На прод-ию для обуч. Во всех образ.учреж-Дели 2017 | B101: Пельмени мясные отварные с маслом сливочным | C101: 195/5 | D101: 16.49 | E101: 19.193 | F101: 54.002 | G101: 432 | H101: 0.165 | I101: 0.379 | J101: 41.068 | K101: 0.00145631068 | L101: 23.715 | M101: 124.510 | N101: 36.097 | O101: 0.942
A102: № 376 Сбор.рец. На прод-ию для обуч. Во всех образ.учреж-Дели 2017 | B102: Чай с сахаром | C102: 190/10 | D102: 0.07 | E102: 0.02 | F102: 10.00 | G102: 40.00 | I102: 0.03 | L102: 10.95 | M102: 2.80 | N102: 1.40 | O102: 0.26
A103: Хим.состав и калорийность российских продуктов питания табл 6 стр 134 , 2012 Дели + | B103: Хлеб пшеничный | C103: 40 | D103: 3.04 | E103: 0.32 | F103: 19.68 | G103: 94.00 | H103: 0.04 | I103: 0.00 | J103: 0.00 | K103: 0.44 | L103: 8.00 | M103: 26.00 | N103: 5.60 | O103: 0.44
B104: Итого: | C104: 550 | D104: =SUM(D99:D103) -> 22.03 | E104: =SUM(E99:E103) -> 22.56 | F104: 93.48 | G104: 647.36 | H104: 0.24 | I104: 10.48 | J104: 62.07 | K104: 0.68 | L104: 158.66 | M104: 224.31 | N104: 57.60 | O104: 3.91 | P104: 25% | Q104: 25%
A111: № рецептуры | B111: Наименование блюд | C111: Выход,г | D111: Белки, г | E111: Жиры, г | F111: Углеводы, г | G111: Калорийность, ккал | H111: Витамин B1, мг | I111: Витамин С, мг | J111: Витамин А, мг | K111: Витамин Е, мг | L111: Ca, мг | M111: P, мг | N111: Mg, мг | O111: Fe, мг
B112: 2-ая неделя
B113: 1 день
A114: №293 Сбор.рец. На прод-ию для обуч. Во всех образ.учреж-Дели 2017 | B114: Птица запеченная | C114: 100 | D114: 9.170 | E114: 15.516 | F114: 0.000 | G114: 210.4 | H114: 0.080 | I114: 2.700 | J114: 107.2 | K114: 2.120 | L114: 54.100 | M114: 190.580 | N114: 24.920 | O114: 2.200
A115: № 203 Сбор.рец. На прод-ию для обуч. Во всех образ.учреж-Дели 2017 | B115: Макаронные изделия отварные с маслом сливочным | C115: 180/3 | D115: 6.120 | E115: 2.980 | F115: 40.347 | G115: 207 | H115: 0.068 | I115: 0.000 | J115: 12.000 | K115: 0.96 | L115: 14.150 | M115: 45.500 | N115: 10.343 | O115: 1.023
A116: № 376 Сбор.рец. На прод-ию для обуч. Во всех образ.учреж-Дели 2017 | B116: Чай с сахаром,с яблоком | C116: 180/10/10 | D116: 0.110 | E116: 0.060 | F116: 10.990 | G116: 45 | H116: 0.003 | I116: 1.030 | K116: 0.020 | L116: 12.700 | M116: 3.900 | N116: 2.300 | O116: 0.500
A117: Хим.состав и калорийность российских продуктов питания табл 6 стр 134 , 2012 Дели + | B117: Хлеб пшеничный | C117: 40 | D117: 1.520 | E117: 0.160 | F117: 9.840 | G117: 47 | H117: 0.022 | I117: 0 | J117: 0 | K117: 0.220 | L117: 4.000 | M117: 13.000 | N117: 2.800 | O117: 0.220
A118: Хим.состав и калорийность российских продуктов питания,табл 6, стр 144 , 2012 Дели + | B118: Хлеб ржаной | C118: 30 | D118: 1.980 | E118: 0.360 | F118: 11.880 | G118: 59 | H118: 0.051 | I118: 0 | J118: 0 | K118: 0.420 | L118: 8.700 | M118: 45.000 | N118: 14.100 | O118: 1.170
B119: Итого: | C119: 553 | D119: =SUM(D114:D118) -> 18.90 | E119: =SUM(E114:E118) -> 19.08 | F119: 73.06 | G119: 568.89 | H119: 0.22 | I119: 3.73 | J119: 119.20 | K119: 3.74 | L119: 93.65 | M119: 297.98 | N119: 54.46 | O119: 5.11 | P119: 20% | Q119: 20%
B121: 2 день
A122: №3 Сбор.рец. На прод-ию для обуч. Во всех образ.учреж-Дели 2017 | B122: Бутерброд с маслом сливочным и сыром | C122: 60 | D122: 7.030 | E122: 7.94 | F122: 19.750 | G122: 179 | H122: 0.051 | I122: 0.11 | J122: 51.5 | K122: 0.560 | L122: 159.200 | M122: 117.500 | N122: 13.850 | O122: 0.560
A123: №143,241 Сбор.рец. На прод-ию для обуч. Во всех образ.учреж-Дели 2017 | B123: Овощи тушеные с мясом | C123: 50/200 | D123: 13.33 | E123: 16.28 | F123: 43.58 | G123: 346.67 | H123: 0.02 | I123: 18.77 | J123: 39.00 | K123: 0.00 | L123: 68.94 | M123: 172.79 | N123: 38.24 | O123: 2.24
A124: № 376 Сбор.рец. На прод-ию для обуч. Во всех образ.учреж-Дели 2017 | B124: Чай с мармеладом | C124: 185/15 | D124: 0.09 | E124: 0.02 | F124: 11.910 | G124: 48 | I124: 0.03 | L124: 11.250 | M124: 2.95 | N124: 1.7 | O124: 0.290
A125: Хим.состав и калорийность российских продуктов питания табл 6 стр 134 , 2012 Дели + | B125: Хлеб пшеничный | C125: 20 | D125: 1.52 | E125: 0.16 | F125: 9.840 | G125: 47 | H125: 0.022 | I125: 0 | J125: 0 | K125: 0.22 | L125: 4.000 | M125: 13 | N125: 2.8 | O125: 0.220
A126: Хим.состав и калорийность российских продуктов питания,табл 6, стр 144 , 2012 Дели + | B126: Хлеб ржаной | C126: 20 | D126: 1.320 | E126: 0.240 | F126: 7.920 | G126: 40 | H126: 0.034 | I126: 0 | J126: 0 | K126: 0.280 | L126: 5.800 | M126: 30.000 | N126: 9.400 | O126: 0.780
B127: Итого: | C127: 550 | D127: =SUM(D122:D126) -> 23.29 | E127: 24.14 | F127: =SUM(F122:F126) -> 93.00 | G127: 659.92 | H127: 0.13 | I127: 18.91 | J127: 90.50 | K127: 1.06 | L127: 249.19 | M127: 336.24 | N127: 65.99 | O127: 4.09 | P127: 25% | Q127: 25%
B129: 3 день
A130: № 52 Сбор.рец. На прод-ию для обуч. Во всех образ.учреж-Дели -2017 | B130: Салат из свеклы отварной | C130: 100 | D130: 0.84 | E130: 3.61 | F130: 4.96 | G130: 55.68 | H130: 0.01 | I130: 3.99 | J130: 0.00 | K130: 1.62 | L130: 21.28 | M130: 24.38 | N130: 12.42 | O130: 0.79
A131: № 294 Сбор.рец. На прод-ию для обуч. Во всех образ.учреж-Дели -2017 | B131: Котлеты из мяса кур в томатном соусе | C131: 80/20 | D131: 10.05 | E131: 9.40 | F131: 16.31 | G131: 202.54 | H131: 0.17 | I131: 1.19 | J131: 19.36 | K131: 54.72 | L131: 50.63 | M131: 68.95 | N131: 21.46 | O131: 3.01
A132: № 312 Сбор.рец. На прод-ию для обуч. Во всех образ.учреж-Дели -2017 | B132: Пюре картофельное | C132: 180 | D132: 3.68 | E132: 5.76 | F132: 20.53 | G132: 154.70 | H132: 0.17 | I132: 21.79 | J132: 0.00 | K132: 0.22 | L132: 44.37 | M132: 103.91 | N132: 33.30 | O132: 1.21
A133: № 376 Сбор.рец. На прод-ию для обуч. Во всех образ.учреж-Дели 2017 | B133: Чай с сахаром | C133: 190/10 | D133: 0.07 | E133: 0.02 | F133: 10.00 | G133: 40.00 | I133: 0.03 | L133: 10.95 | M133: 2.80 | N133: 1.40 | O133: 0.26
A134: Хим.состав и калорийность российских продуктов питания табл 6 стр 134 , 2012 Дели + | B134: Хлеб пшеничный | C134: 20 | D134: 1.520 | E134: 0.160 | F134: 9.840 | G134: 47 | H134: 0.022 | I134: 0 | J134: 0 | K134: 0.220 | L134: 4.000 | M134: 13.000 | N134: 2.800 | O134: 0.220
A135: Хим.состав и калорийность российских продуктов питания,табл 6, стр 144 , 2012 Дели + | B135: Хлеб ржаной | C135: 30 | D135: 1.980 | E135: 0.360 | F135: 11.880 | G135: 59 | H135: 0.051 | I135: 0 | J135: 0 | K135: 0.420 | L135: 8.700 | M135: 45.000 | N135: 14.100 | O135: 1.170
B136: Итого: | C136: 630 | D136: =SUM(D130:D135) -> 18.14 | E136: =SUM(E130:E135) -> 19.31 | F136: 73.51 | G136: 559.32 | H136: 0.42 | I136: 27.01 | J136: 19.36 | K136: 57.19 | L136: 139.92 | M136: 258.04 | N136: 85.47 | O136: 6.66 | P136: 20% | Q136: 20%
B141: 4 день
A142: №279,331 Сбор.рец. На прод-ию для питания детей в дошк образоват учрежд-Дели 2017 | B142: Тефтели мясные в сметанно-томатном соусе | C142: 60/40 | D142: 7.284 | E142: 11.790 | F142: 8.738 | G142: 124 | H142: 0.048 | I142: 0.276 | J142: 29.620 | K142: 0.421 | L142: 20.726 | M142: 80.202 | N142: 15.521 | O142: 0.640
A143: № 203 Сбор.рец. На прод-ию для обуч. Во всех образ.учреж-Дели 2017 | B143: Макаронные изделия отварные с маслом сливочным | C143: 180/3 | D143: 6.120 | E143: 2.980 | F143: 38.400 | G143: 207 | H143: 0.068 | I143: 0.000 | J143: 12.000 | K143: 0.96 | L143: 14.150 | M143: 45.500 | N143: 10.343 | O143: 1.023
A144: ТТК | B144: Напиток из свежих фруктов (75 С) | C144: 200 | D144: 0.34 | E144: 0.17 | F144: 11.48 | G144: 63.60 | H144: 0.02 | I144: 3.17 | J144: 0.00 | K144: 0.13 | L144: 16.67 | M144: 7.05 | N144: 7.78 | O144: 0.88
A145: Хим.состав и калорийность российских продуктов питания табл 6 стр 134 , 2012 Дели + | B145: Хлеб пшеничный | C145: 35 | D145: 2.66 | E145: 0.28 | F145: 17.22 | G145: 82.25 | H145: 0.04 | I145: 0.00 | J145: 0.00 | K145: 0.39 | L145: 7.00 | M145: 22.75 | N145: 4.90 | O145: 0.39
A146: Хим.состав и калорийность российских продуктов питания,табл 6, стр 144 , 2012 Дели + | B146: Хлеб ржаной | C146: 35 | D146: 2.310 | E146: 0.420 | F146: 13.860 | G146: 69 | H146: 0.060 | I146: 0 | J146: 0 | K146: 0.490 | L146: 10.150 | M146: 52.500 | N146: 16.450 | O146: 1.365
B147: Итого: | C147: 553 | D147: =SUM(D142:D146) -> 18.71 | E147: =E142+E143+E143+E144+E145+E146 -> 18.62 | F147: =F142+F143+F145+F146 -> 78.22 | G147: =SUM(G142:G146) -> 546.18 | H147: 0.24 | I147: 3.45 | J147: 41.62 | K147: 2.39 | L147: 68.69 | M147: 208.00 | N147: 55.00 | O147: 4.29 | P147: 20% | Q147: 20%
B149: 5 день
A150: ТТК | B150: Салат из свежей капусты с кукурузой к/с | C150: 100 | D150: 1.24 | E150: 2.41 | F150: 6.70 | G150: 66.24 | H150: 0.03 | I150: 15.93 | J150: 0.00 | K150: 7.56 | L150: 24.02 | M150: 32.73 | N150: 15.76 | O150: 0.49
A151: № 280 Сбор.рец. На прод-ию для обуч. Во всех образ.учреж-Дели -2017 | B151: Фрикадельки в сметанно-томатном соусе | C151: 55/50 | D151: 8.50 | E151: 11.21 | F151: 10.61 | G151: 180.00 | H151: 0.04 | I151: 0.27 | J151: 16.31 | K151: 2.67 | L151: 24.45 | M151: 79.59 | N151: 14.19 | O151: 5.29
A152: № 171 Сбор.рец. На прод-ию для обуч. Во всех образ.учреж-Дели 2017 | B152: Каша гречневая рассыпчатая с маслом сливочным | C152: 180/5 | D152: 10.56 | E152: 9.99 | F152: 47.73 | G152: 291.80 | H152: 0.25 | I152: 0.00 | J152: 20.00 | K152: 0.53 | L152: 29.99 | M152: 250.32 | N152: 168.62 | O152: 5.66
A153: № 376 Сбор.рец. На прод-ию для обуч. Во всех образ.учреж-Дели 2017 | B153: Чай с сахаром,с яблоком | C153: 180/10/10 | D153: 0.11 | E153: 0.06 | F153: 10.990 | G153: 45 | H153: 0.003 | I153: 1.03 | K153: 0.02 | L153: 12.700 | M153: 3.9 | N153: 2.3 | O153: 0.500
A154: Хим.состав и калорийность российских продуктов питания табл 6 стр 134 , 2012 Дели + | B154: Хлеб пшеничный | C154: 20 | D154: 1.520 | E154: 0.160 | F154: 9.840 | G154: 47 | H154: 0.022 | I154: 0 | J154: 0 | K154: 0.220 | L154: 4.000 | M154: 13.000 | N154: 2.800 | O154: 0.220
A155: Хим.состав и калорийность российских продуктов питания,табл 6, стр 144 , 2012 Дели + | B155: Хлеб ржаной | C155: 25 | D155: 1.65 | E155: 0.30 | F155: 9.90 | G155: 49.50 | H155: 0.04 | I155: 0.00 | J155: 0.00 | K155: 0.35 | L155: 7.25 | M155: 37.50 | N155: 11.75 | O155: 0.98
B156: Итого: | C156: 635 | D156: =D150+D151+D152+D153+D154+D155 -> 23.58 | E156: =E150+E151+E152+E153+E154+E155 -> 24.13 | F156: 95.78 | G156: 679.59 | H156: 0.39 | I156: 17.23 | J156: 36.31 | K156: 11.35 | L156: 102.41 | M156: 417.04 | N156: 215.42 | O156: 13.14 | P156: 25% | Q156: 25%
B158: 6 день
A159: Хим.состав и калорийность российских продуктов питания табл 9 стр 184 , 2012 Дели + | B159: Плоды и ягоды свежие (апельсин) | C159: 100 | D159: 0.900 | E159: 0.200 | F159: 8.100 | G159: 43.00 | H159: 0.040 | I159: 43.000 | K159: 0.200 | L159: 34.000 | M159: 23.000 | N159: 13.000 | O159: 0.300
A160: № 390,391,392 Сбор.рец. На прод-ию для обуч. Во всех образ.учреж-Дели 2017 | B160: Пельмени мясные отварные с маслом сливочным | C160: 195/5 | D160: 16.49 | E160: 21.19 | F160: 43.00 | G160: 402.03 | H160: 0.17 | I160: 0.38 | J160: 41.07 | K160: 0.00 | L160: 23.71 | M160: 124.51 | N160: 36.10 | O160: 0.94
A161: № 376 Сбор.рец. На прод-ию для обуч. Во всех образ.учреж-Дели 2017 | B161: Чай с мармеладом | C161: 185/15 | D161: 0.09 | E161: 0.02 | F161: 11.91 | G161: 48.15 | I161: 0.03 | L161: 11.25 | M161: 2.95 | N161: 1.70 | O161: 0.29
A162: Хим.состав и калорийность российских продуктов питания табл 6 стр 134 , 2012 Дели + | B162: Хлеб пшеничный | C162: 40 | D162: 3.040 | E162: 0.320 | F162: 19.680 | G162: 94 | H162: 0.044 | I162: 0 | J162: 0 | K162: 0.440 | L162: 8.000 | M162: 26.000 | N162: 5.600 | O162: 0.440
A163: Хим.состав и калорийность российских продуктов питания,табл 6, стр 144 , 2012 Дели + | B163: Хлеб ржаной | C163: 30 | D163: 1.980 | E163: 0.360 | F163: 11.880 | G163: 59 | H163: 0.051 | I163: 0 | J163: 0 | K163: 0.420 | L163: 8.700 | M163: 45.000 | N163: 14.100 | O163: 1.170
B164: Итого: | C164: 570 | D164: =SUM(D159:D163) -> 22.50 | E164: =SUM(E159:E163) -> 22.09 | F164: 94.57 | G164: 646.58 | H164: 0.30 | I164: 43.41 | J164: 41.07 | K164: 1.06 | L164: 85.66 | M164: 221.46 | N164: 70.50 | O164: 3.14 | P164: 25% | Q164: 25%
B165: ВСЕГО за 12 дней: | C165: =C60+C69+C77+C86+C95+C104+C119+C127+C136+C147+C156+C164 -> 7077 | D165: 256.2527338 | E165: 258.7072278 | F165: 1063.72505 | G165: 7572.67064 | H165: 4.113537667 | I165: 182.4905729 | J165: 620.2854485 | K165: 126.2072859 | L165: 1575.8805 | M165: 3933.730462 | N165: 1249.54599 | O165: 75.60762004
B166: В среднем на 1 учащегося в день: | C166: =C165/12 -> 590 | D166: =D165/12 -> 21.35 | E166: 21.56 | F166: 88.64 | G166: 631.06 | H166: 0.34 | I166: 15.21 | J166: 51.69 | K166: 10.52 | L166: 131.32 | M166: 327.81 | N166: 104.13 | O166: 6.30 | P166: 20-25%

Sheet Замена 1 неделя
B2: Замена блюда
B4: День | C4: Прием пищи | D4: Заменяемое блюдо/ Вариант Замены | F4: Выход,г | G4: Белки,г | H4: Жиры,г | I4: Углеводы,г | J4: ЭЦ,ккал
B5: День 1 (1 неделя) | C5: Горячий завтрак младшие классы (7-11 лет) | D5: Салат из моркови с яблоками | E5: по меню | F5: 60 | G5: 0.64 | H5: 0.10 | I5: 5.11 | J5: 23.94
D6: Котлета домашняя из говядины | F6: 90 | G6: 10.20 | H6: 13.97 | I6: 8.10 | J6: 199.57
D7: Макаронные изделия отварные с маслом сливочным | F7: 150/5 | G7: 5.12 | H7: 4.53 | I7: 31.99 | J7: 189.30
D8: Компот из сухофруктов (75С) | F8: 200 | G8: 0.66 | H8: 0.09 | I8: 22.03 | J8: 92.90
D9: Хлеб ржаной | F9: 30 | G9: 1.98 | H9: 0.81 | I9: 26.73 | J9: 133.65
D10: Итого: | F10: 535 | G10: 18.55 | H10: 19.33 | I10: 85.86 | J10: 615.42 | K10: 25%
D12: Салат из моркови с яблоками | E12: замена | F12: 60 | G12: 0.64 | H12: 0.10 | I12: 5.11 | J12: 23.94
D13: Сосиски отварные | F13: 100 | G13: 10.80 | H13: 13.84 | I13: 0.36 | J13: 201.12
D14: Макаронные изделия отварные с маслом сливочным | F14: 150/5 | G14: 5.12 | H14: 4.53 | I14: 31.99 | J14: 189.30
D15: Компот из сухофруктов (75С) | F15: 200 | G15: 0.66 | H15: 0.09 | I15: 22.03 | J15: 92.90
D16: Хлеб пшеничный | F16: 40 | G16: 3.040 | H16: 0.320 | I16: 19.680 | J16: 94
D17: Итого с заменой на сосиски: | F17: 555 | G17: 20.16 | H17: =H12+H13+H14+H15+H16 -> 18.88 | I17: 79.57 | J17: =J12+J13+J14+J15+J16 -> 601.26 | K17: 25%
B19: День 1 (1 неделя) | C19: Горячий завтрак старшие классы (12лет и старше) | D19: Салат из моркови с яблоками | F19: 100 | G19: 1.06 | H19: 0.17 | I19: 8.52 | J19: 39.90
D20: Котлета домашняя из говядины | E20: по меню | F20: 100 | G20: 11.28 | H20: 16.71 | I20: 9.00 | J20: 221.74
D21: Макаронные изделия отварные с маслом сливочным | F21: 180/5 | G21: 6.83 | H21: 4.43 | I21: 38.37 | J21: 220.56
D22: Компот из сухофруктов (75С) | F22: 200 | G22: 0.34 | H22: 0.17 | I22: 22.84 | J22: 106.40
D23: Хлеб пшеничный | F23: 30 | G23: 2.280 | H23: 0.240 | I23: 14.760 | J23: 71
D24: Хлеб ржаной | F24: 35 | G24: 2.31 | H24: 0.42 | I24: 13.86 | J24: 69.30
D25: Итого: | F25: 580 | G25: =G20+G21+G23+G24 -> 22.70 | H25: =H19+H20+H21+H22+H23+H24 -> 22.14 | I25: =I20+I21+I22+I23+I24 -> 98.83 | J25: =J20+J21+J22+J23+J24 -> 688.50 | K25: 25%
D27: Салат из моркови с яблоками | F27: 100 | G27: 1.06 | H27: 0.17 | I27: 8.52 | J27: 39.90
D28: Сосиски отварные | E28: замена | F28: 100 | G28: 10.80 | H28: 13.84 | I28: 0.36 | J28: 201.12
D29: Макаронные изделия отварные с маслом сливочным | F29: 200/3 | G29: 7.37 | H29: 8.20 | I29: 39.30 | J29: 257.60
D30: Компот из сухофруктов (75С) | F30: 200 | G30: 0.34 | H30: 0.17 | I30: 22.84 | J30: 106.40
D31: Хлеб пшеничный | F31: 30 | G31: 1.520 | H31: 0.160 | I31: 9.840 | J31: 47.000
D32: Хлеб ржаной | F32: 35 | G32: 2.31 | H32: 0.42 | I32: 13.86 | J32: 69.30
D33: Итого с заменой на сосиски: | F33: 598 | G33: =G27+G28+G29+G30+G31+G32 -> 23.40 | H33: =H27+H28+H29+H30+H31+H32 -> 22.96 | I33: =I27+I28+I29+I30+I31+I32 -> 94.72 | J33: 711.32 | K33: 25%
B36: День | C36: Прием пищи | D36: Заменяемое блюдо/ Вариант Замены | E36: по меню | F36: Выход,г | G36: Белки,г | H36: Жиры,г | I36: Углеводы,г | J36: ЭЦ,ккал
B37: День 6 (1 неделя) | C37: Горячий завтрак младшие классы (7-11 лет) | D37: Плоды и ягоды свежие (яблоки) | F37: 100 | G37: 0.40 | H37: 0.40 | I37: 9.80 | J37: 47.00
D38: Сыр порционно | F38: 10 | G38: 2.03 | H38: 2.63 | I38: 0.00 | J38: 34.33
D39: Пельмени мясные отварные с маслом сливочным | F39: 170/5 | G39: 14.04 | H39: 15.87 | I39: 40.82 | J39: 346.25
D40: Чай с сахаром | F40: 190/10 | G40: 0.07 | H40: 0.02 | I40: 10.00 | J40: 40.00
D41: Хлеб пшеничный | F41: 40 | G41: 3.04 | H41: 0.32 | I41: 19.68 | J41: 94.00
D42: Итого: | F42: 525 | G42: =SUM(G37:G41) -> 19.58 | H42: =SUM(H37:H41) -> 19.24 | I42: =SUM(I37:I41) -> 80.30 | J42: =SUM(J37:J41) -> 561.58 | K42: 25%
D44: Плоды и ягоды свежие (яблоки) | E44: замена | F44: 100 | G44: 0.40 | H44: 0.40 | I44: 9.80 | J44: 47.00
D45: Сыр порционно | F45: 10 | G45: 2.03 | H45: 2.63 | I45: 0.00 | J45: 34.33
D46: Тефтели мясные в томатном соусе | F46: 60/40 | G46: 7.16 | H46: 8.32 | I46: 10.96 | J46: 149.91
D47: Каша пшенная вязкая | F47: 150 | G47: 4.18 | H47: 5.01 | I47: 23.94 | J47: 157.50
D48: Чай с сахаром | F48: 190/10 | G48: 0.07 | H48: 0.02 | I48: 10.00 | J48: 40.00
D49: Хлеб пшеничный | F49: 25 | G49: 1.90 | H49: 0.20 | I49: 12.30 | J49: 58.75
D50: Итого: | F50: 585 | G50: =SUM(G44:G49) -> 15.75 | H50: =SUM(H44:H49) -> 16.58 | I50: =SUM(I44:I49) -> 67.01 | J50: =SUM(J44:J49) -> 487.49 | K50: 20%
B52: День | C52: Прием пищи | D52: Заменяемое блюдо/ Вариант Замены | E52: по меню | F52: Выход,г | G52: Белки,г | H52: Жиры,г | I52: Углеводы,г | J52: ЭЦ,ккал
B53: День 6 (1 неделя) | C53: Горячий завтрак старшие классы (12лет и старше) | D53: Плоды и ягоды свежие (яблоки) | F53: 100 | G53: 0.40 | H53: 0.40 | I53: 9.80 | J53: 47.00
D54: Сыр порционно | F54: 10 | G54: 2.03 | H54: 2.63 | I54: 0.00 | J54: 34.33
D55: Пельмени мясные отварные с маслом сливочным | F55: 195/5 | G55: 16.49 | H55: 19.19 | I55: 54.00 | J55: 432.03
D56: Чай с сахаром | F56: 190/10 | G56: 0.07 | H56: 0.02 | I56: 10.00 | J56: 40.00
D57: Хлеб пшеничный | F57: 40 | G57: 3.04 | H57: 0.32 | I57: 19.68 | J57: 94.00
D58: Итого: | F58: 550 | G58: 22.03 | H58: 22.56 | I58: 93.48 | J58: 647.36 | K58: 25%
D60: Плоды и ягоды свежие (яблоки) | E60: замена | F60: 100 | G60: 0.40 | H60: 0.40 | I60: 9.80 | J60: 47.00
D61: Сыр порционно | F61: 10 | G61: 2.03 | H61: 2.63 | I61: 0.00 | J61: 34.33
D62: Тефтели мясные в томатном соусе | F62: 60/40 | G62: 7.16 | H62: 8.32 | I62: 10.96 | J62: 149.91
D63: Каша пшенная вязкая | F63: 180 | G63: 5.02 | H63: 6.01 | I63: 28.73 | J63: 189.00
D64: Чай с сахаром | F64: 190/10 | G64: 0.07 | H64: 0.02 | I64: 10.00 | J64: 40.00
D65: Хлеб пшеничный | F65: 40 | G65: 3.04 | H65: 0.32 | I65: 19.68 | J65: 94.00
D66: Итого: | F66: 630 | G66: =SUM(G60:G65) -> 17.72 | H66: =SUM(H60:H65) -> 17.70 | I66: =SUM(I60:I65) -> 79.18 | J66: =SUM(J60:J65) -> 554.24 | K66: 20%

Sheet Замена 2 неделя
B2: День | C2: Прием пищи | D2: Заменяемое блюдо/ Вариант Замены | F2: Выход,г | G2: Белки,г | H2: Жиры,г | I2: Углеводы,г | J2: ЭЦ,ккал
B3: День 2 (2 неделя) | C3: Горячий завтрак младшие классы (7-11 лет) | D3: Бутерброд с маслом сливочным и сыром | E3: по меню | F3: 60 | G3: 7.03 | H3: 7.94 | I3: 19.75 | J3: 178.50
D4: Овощи тушеные с мясом | F4: 50/150 | G4: 10.17 | H4: 12.60 | I4: 32.31 | J4: 292.17
D5: Чай с мармеладом | F5: 185/15 | G5: 0.13 | H5: 0.02 | I5: 10.20 | J5: 42.00
D6: Хлеб ржаной | F6: 40 | G6: 2.64 | H6: 0.48 | I6: 15.84 | J6: 79.20
D7: Итого: | F7: 500 | G7: 19.93 | H7: 20.56 | I7: 79.81 | J7: 598.02 | K7: 25%
D9: Сыр порционно | E9: замена | F9: 10 | G9: 2.63 | H9: 2.66 | I9: 0.00 | J9: 34.33
D10: ИЛИ Котлета домашняя из говядины | F10: 90 | G10: 9.41 | H10: 9.93 | I10: 8.10 | J10: 199.57
D11: ИЛИ СОСИСКИ ОТВАРНЫЕ | F11: 100 | G11: 10.80 | H11: 13.84 | I11: 0.36 | J11: 201.12
D12: Каша "Дружба" вязкая молочная с маслом сливочным | F12: 150/5 | G12: 2.33 | H12: 2.94 | I12: 38.92 | J12: 178.50
D13: Чай с мармеладом | F13: 185/15 | G13: 0.13 | H13: 0.02 | I13: 10.20 | J13: 42.00
D14: Хлеб пшеничный | F14: 20 | G14: 1.520 | H14: 0.160 | I14: 9.840 | J14: 47
D15: Хлеб ржаной | F15: 50 | G15: 2.55 | H15: 0.60 | I15: 19.80 | J15: 99.00
D16: Итого с заменой на котлеты: | F16: 525 | G16: =G9+G10+G12+G13+G14+G15 -> 18.57 | H16: =H9+H9+H10+H12+H13+H14+H15 -> 18.97 | I16: =I9+I10+I12+I13+I14+I15 -> 86.86 | J16: =J9+J10+J12+J13+J14+J15 -> 600.40 | K16: 25%
D17: Итого с заменой на сосиски: | F17: 535 | G17: =G9+G11+G12+G13+G14+G15 -> 19.96 | H17: =H9+H11+H12+H13+H14+H15 -> 20.22 | I17: 79.62 | J17: =J9+J11+J12+J13+J14+J15 -> 601.95 | K17: 25%
B19: День 2 (2 неделя) | C19: Горячий завтрак старшие классы (12 лет и старше) | D19: Бутерброд с маслом сливочным и сыром | E19: по меню | F19: 60 | G19: 7.030 | H19: 7.940 | I19: 19.750 | J19: 179
D20: Овощи тушеные с мясом | F20: 50/200 | G20: 13.33 | H20: 16.28 | I20: 43.58 | J20: 346.67
D21: Чай с мармеладом | F21: 185/15 | G21: 0.09 | H21: 0.02 | I21: 11.91 | J21: 48.15
D22: Хлеб пшеничный | F22: 20 | G22: 1.52 | H22: 0.16 | I22: 9.840 | J22: 47
D23: Хлеб ржаной | F23: 20 | G23: 1.320 | H23: 0.240 | I23: 7.920 | J23: 40
D24: Итого: | F24: 550 | G24: 23.29 | H24: 24.14 | I24: 93.00 | J24: 659.92 | K24: 25%
D26: Сыр порционно | E26: замена | F26: 10 | G26: 2.63 | H26: 2.66 | I26: 0.00 | J26: 34.33
D27: ИЛИ Котлета домашняя из говядины | F27: 100 | G27: 10.45 | H27: 11.03 | I27: 0.40 | J27: 221.74
D28: ИЛИ СОСИСКИ ОТВАРНЫЕ | F28: 100 | G28: 10.80 | H28: 13.84 | I28: 0.36 | J28: 201.12
D29: Каша "Дружба" вязкая молочная | F29: 220/5 | G29: 5.79 | H29: 6.95 | I29: 56.75 | J29: 246.40
D30: Чай с мармеладом | F30: 185/15 | G30: 0.09 | H30: 0.02 | I30: 11.910 | J30: 48
D31: Хлеб пшеничный | F31: 30 | G31: 2.280 | H31: 0.240 | I31: 14.760 | J31: 71
D32: Хлеб ржаной | F32: 30 | G32: 1.980 | H32: 0.360 | I32: 11.880 | J32: 59.400
D33: Итого с заменой на котлеты: | F33: 595 | G33: =G26+G27+G29+G30+G31+G32 -> 23.22 | H33: =H26+H27+H29+H30+H31+H31+H32+H32 -> 21.86 | I33: =I26+I27+I29+I30+I31+I32 -> 95.70 | J33: =J26+J27+J29+J30+J31+J32 -> 680.52 | K33: 25%
D34: Итого с заменой на сосиски: | F34: 595 | G34: =G26+G28+G29+G30+G31+G32 -> 23.57 | H34: =H26+H28+H29+H30+H31+H32 -> 24.07 | I34: =I26+I28+I29+I30+I31+I32 -> 95.66 | J34: =J26+J28+J29+J30+J31+J32 -> 659.90 | K34: 25%
B37: День | C37: Прием пищи | D37: Заменяемое блюдо/ Вариант Замены | E37: по меню | F37: Выход,г | G37: Белки,г | H37: Жиры,г | I37: Углеводы,г | J37: ЭЦ,ккал
B38: День 6 (2 неделя) | C38: Горячий завтрак младшие классы (7-11 лет) | D38: Плоды и ягоды свежие (яблоки) | F38: 100 | G38: 0.40 | H38: 0.40 | I38: 9.80 | J38: 47.00
D39: Пельмени мясные отварные с маслом сливочным | F39: 170/5 | G39: 14.84 | H39: 17.87 | I39: 40.82 | J39: 346.25
D40: Чай с мармеладом | F40: 185/15 | G40: 0.09 | H40: 0.02 | I40: 11.91 | J40: 48.15
D41: Хлеб пшеничный | F41: 25 | G41: 1.90 | H41: 0.20 | I41: 12.30 | J41: 58.75
D42: Хлеб ржаной | F42: 30 | G42: 1.98 | H42: 0.36 | I42: 11.88 | J42: 59.40
D43: Итого: | F43: 530 | G43: 19.21 | H43: 18.85 | I43: 86.71 | J43: 559.55 | K43: 25%
D45: Плоды и ягоды свежие (яблоки) | E45: замена | F45: 100 | G45: 0.40 | H45: 0.40 | I45: 9.80 | J45: 47.00
D46: Рыба тушеная с овощами | F46: 50/40 | G46: 10.28 | H46: 8.82 | I46: 2.54 | J46: 103.01
D47: Рис отварной рассыпчатый с маслом сливочным | F47: 150/5 | G47: 3.69 | H47: 9.00 | I47: 36.75 | J47: 242.70
D48: Чай с мармеладом | F48: 185/15 | G48: 0.09 | H48: 0.02 | I48: 11.91 | J48: 48.15
D49: Хлеб пшеничный | F49: 25 | G49: 1.90 | H49: 0.20 | I49: 12.30 | J49: 58.75
D50: Хлеб ржаной | F50: 30 | G50: 1.98 | H50: 0.36 | I50: 11.88 | J50: 59.40
D51: Итого: | F51: 600 | G51: =SUM(G45:G50) -> 18.34 | H51: =SUM(H45:H50) -> 18.80 | I51: =SUM(I45:I50) -> 85.19 | J51: =SUM(J45:J50) -> 559.01 | K51: 25%
B53: День | C53: Прием пищи | D53: Заменяемое блюдо/ Вариант Замены | E53: по меню | F53: Выход,г | G53: Белки,г | H53: Жиры,г | I53: Углеводы,г | J53: ЭЦ,ккал
B54: День 6 (2 неделя) | C54: Горячий завтрак старшие классы (12лет и старше) | D54: Плоды и ягоды свежие (апельсин) | F54: 100 | G54: 0.90 | H54: 0.20 | I54: 8.10 | J54: 43.00
D55: Пельмени мясные отварные с маслом сливочным | F55: 195/5 | G55: 16.49 | H55: 21.19 | I55: 43.00 | J55: 402.03
D56: Чай с мармеладом | F56: 185/15 | G56: 0.09 | H56: 0.02 | I56: 11.91 | J56: 48.15
D57: Хлеб пшеничный | F57: 40 | G57: 3.04 | H57: 0.32 | I57: 19.68 | J57: 94.00
D58: Хлеб ржаной | F58: 30 | G58: 1.98 | H58: 0.36 | I58: 11.88 | J58: 59.40
D59: Итого: | F59: 570 | G59: =SUM(G54:G58) -> 22.50 | H59: =SUM(H54:H58) -> 22.09 | I59: =SUM(I54:I58) -> 94.57 | J59: =SUM(J54:J58) -> 646.58 | K59: 25%
D61: Плоды и ягоды свежие (апельсин) | E61: замена | F61: 100 | G61: 0.90 | H61: 0.20 | I61: 8.10 | J61: 43.00
D62: Рыба тушеная с овощами | F62: 50/50 | G62: 10.43 | H62: 9.32 | I62: 3.80 | J62: 115.00
D63: Рис отварной рассыпчатый с маслом сливочным | F63: 180/5 | G63: 4.42 | H63: 9.40 | I63: 44.09 | J63: 284.64
D64: Чай с мармеладом | F64: 185/15 | G64: 0.09 | H64: 0.02 | I64: 11.91 | J64: 48.15
D65: Хлеб ржаной | F65: 30 | G65: 1.98 | H65: 0.36 | I65: 11.88 | J65: 59.40
D66: Итого: | F66: 625 | G66: =SUM(G61:G65) -> 17.82 | H66: =SUM(H61:H65) -> 19.30 | I66: =SUM(I61:I65) -> 79.78 | J66: =SUM(J61:J65) -> 550.19 | K66: 20%

Sheet Меню сокр
A1: ПРИМЕРНОЕ ДВУХНЕДЕЛЬНОЕ МЕНЮ ДЛЯ ОБУЧАЮЩИХСЯ В ОБЩЕОБРАЗОВАТЕЛЬНЫХ ОРГАНИЗАЦИЯХ (сезон осенне-зимний)
A3: ГОРЯЧИЙ ЗАВТРАК
A4: 1-ая неделя
A5: 1 день | D5: 2 день | G5: 3 день | J5: 4 день | M5: 5 день | P5: 6 день
A6: Наименование блюд | B6: Выход,г | D6: Наименование блюд | E6: Выход,г | G6: Наименование блюд | H6: Выход,г | J6: Наименование блюд | K6: Выход,г | M6: Наименование блюд | N6: Выход,г | P6: Наименование блюд | Q6: Выход,г
B7: 7-11 лет | C7: 12 лет и старше | E7: 7-11 лет | F7: 12 лет и старше | H7: 7-11 лет | I7: 12 лет и старше | K7: 7-11 лет | L7: 12 лет и старше | N7: 7-11 лет | O7: 12 лет и старше | Q7: 7-11 лет | R7: 12 лет и старше
P8: Плоды и ягоды свежие (яблоки) | Q8: 100 | R8: 100
A9: Салат из моркови с яблоками | B9: 60 | C9: 100 | D9: Сыр порционно | E9: 10 | F9: 10 | G9: Плоды и ягоды свежие (апельсин) | H9: 100 | J9: Салат из свежей белокочанной капусты с яблоками | K9: 60 | L9: 100 | M9: Салат из моркови с сахаром | N9: 60 | O9: 100 | P9: Сыр порционно | Q9: 10 | R9: 10
A10: Котлета домашняя | B10: 90 | C10: 100 | D10: Котлеты из мяса кур | E10: 90 | F10: 100 | G10: Куриные бедра запеченные с томатным соусом | H10: 90/20 | I10: 90/20 | J10: Рыба тушеная с овощами в томате | K10: 50/50 | L10: 50/50 | M10: Котлеты говяжьи | N10: 90 | O10: 100 | P10: Пельмени с маслом сливочным | Q10: 170/5 | R10: 195/5
A11: замена на Сосиски говяжьи | B11: 100 | C11: 100
A12: Макаронные изделия с маслом сливочным | B12: 150/5 | C12: 180/5 | D12: Каша гречневая рассыпчатая с маслом сливочным | E12: 150/5 | F12: 180/3 | G12: Рис отварной рассыпчатый с маслом сливочным/Рис отварной рассыпчатый | H12: 150/5 | I12: 180 | J12: Пюре картофельное с маслом сливочным | K12: 150/5 | L12: 180/3 | M12: Гороховое пюре | N12: 150/5 | O12: 180/5
A13: Компот из сухофруктов (75С) (сахара 10г) | B13: 200 | C13: 200 | D13: Чай с сахаром,с лимоном | E13: 185/10/5 | F13: 185/10/5 | G13: Чай с сахаром | H13: 190/10 | I13: 190/10 | J13: Компот из свежих яблок (75С) (сахара 10г) | K13: 200 | L13: 200 | M13: Чай с мармеладом | N13: 185/15 | O13: 185/15 | P13: Чай с сахаром | Q13: 190/10 | R13: 190/10
A14: Хлеб пшеничный | C14: 30 | D14: Хлеб пшеничный | E14: 50 | F14: 20 | G14: Хлеб пшеничный | H14: 30 | I14: 40 | J14: Хлеб пшеничный | K14: 30 | L14: 20 | M14: Хлеб пшеничный | N14: 30 | O14: 20 | P14: Хлеб пшеничный | Q14: 40 | R14: 40
A15: Хлеб ржаной | B15: 30 | C15: 35 | D15: Хлеб ржаной | F15: 40 | G15: Хлеб ржаной | H15: 20 | I15: 40 | J15: Хлеб ржаной | K15: 20 | L15: 25 | M15: Хлеб ржаной | N15: 20 | O15: 30
A16: Итого: | B16: 535 | C16: 650 | D16: Итого: | E16: 505 | F16: 553 | G16: Итого: | H16: 615 | I16: 570 | J16: Итого: | K16: 565 | L16: 628 | M16: Итого: | N16: 555 | O16: 635 | P16: Итого: | Q16: 525 | R16: 550
A18: Белки,г | B18: 18.550 | C18: 23.760 | E18: 20.050 | F18: 22.830 | H18: 19.370 | I18: 23.200 | K18: 14.630 | L18: 18.460 | N18: 18.320 | O18: 21.910 | Q18: 19.580 | R18: 22.030 | S18: =B18+E18+H18+K18+N18+Q18 -> 110.50 | T18: 132.19
A19: Жиры,г | B19: 19.330 | C19: 22.060 | E19: 19.060 | F19: 23.540 | H19: 19.540 | I19: 22.310 | K19: 16.600 | L19: 18.620 | N19: 19.350 | O19: 22.240 | Q19: 19.240 | R19: 22.560 | S19: 113.12 | T19: 131.33
A20: Углеводы,г | B20: 85.860 | C20: 98.020 | E20: 82.380 | F20: 99.490 | H20: 80.730 | I20: 91.240 | K20: 68.650 | L20: 73.190 | N20: 81.350 | O20: 100.160 | Q20: 80.300 | R20: 93.480 | S20: 479.27 | T20: 555.58
A21: ЭЦ,ккал | B21: 615.420 | C21: 675.000 | E21: 580.630 | F21: 712.200 | H21: 600.900 | I21: 670.940 | K21: 473.510 | L21: 534.840 | N21: 599.170 | O21: 671.850 | Q21: 561.580 | R21: 647.360 | S21: 3431.21 | T21: 3912.19
A25: 2-ая неделя
A26: 1 день | D26: 2 день | G26: 3 день | J26: 4 день | M26: 5 день | P26: 6 день
A27: Наименование блюд | B27: Выход,г | D27: Наименование блюд | E27: Выход,г | G27: Наименование блюд | H27: Выход,г | J27: Наименование блюд | K27: Выход,г | M27: Наименование блюд | N27: Выход,г | P27: Наименование блюд | Q27: Выход,г
B28: 7-11 лет | C28: 12 лет и старше | E28: 7-11 лет | F28: 12 лет и старше | H28: 7-11 лет | I28: 12 лет и старше | K28: 7-11 лет | L28: 12 лет и старше | N28: 7-11 лет | O28: 12 лет и старше | Q28: 7-11 лет | R28: 12 лет и старше
A30: Плоды и ягоды свежие (яблоки) | B30: 100 | D30: Бутерброд с маслом сливочным и сыром | E30: 60 | F30: 50 | G30: Салат из отварной свеклы | H30: 60 | I30: 100 | J30: Плоды и ягоды свежие (апельсины) | K30: 100 | M30: Салат из свежей капусты с кукурузой | N30: 60 | O30: 100 | P30: Плоды и ягоды свежие (яблоки) | Q30: 100 | R30: 100
A31: Куриное бедро /цыплята/куриная грудка /запеченные | B31: 90 | C31: 100 | G31: Котлеты из мяса кур/Котлеты из мяса кур в томатном соусе с овощами | H31: 90 | I31: 80/20 | J31: Тефтели мясные в томатно-сметанном соусе | K31: 60/40 | L31: 60/40 | M31: Фрикадельки в сметанно- томатном соусе | N31: 55/50 | O31: 55/50 | P31: Пельмени с маслом сливочным | Q31: 170/5 | R31: 195/5
A32: Макаронные изделия отварные с маслом сливочным | B32: 150/3 | C32: 180/3 | D32: Овощи тушеные с мясом | E32: 50/150 | F32: 50/200 | G32: Пюре картофельное с маслом сливочным/Пюре картофельное | H32: 150/5 | I32: 180 | J32: Макаронные изделия отварные с маслом сливочным | K32: 150/3 | L32: 180/3 | M32: Каша гречневая рассыпчатая с маслом сливочным | N32: 150/5 | O32: 180/5
D33: замена на Котлета домашняя/ИЛИ сосиски отварные | E33: 90/100 | F33: 100/100
D34: по замене Каша Дружба"Молочная" | E34: 150/5 | F34: 220/5
A35: Чай с сахаром,с яблоком | B35: 180/10/10 | C35: 180/10/10 | D35: Чай с мармеладом | E35: 185/15 | F35: 185/15 | G35: Чай с сахаром | H35: 190/10 | I35: 190/10 | J35: Напиток из свежих фруктов 75С (сахара 10г) | K35: 200 | L35: 200 | M35: Чай с сахаром,с яблоком | N35: 180/10/10 | O35: 180/10/10 | P35: Чай с мармеладом (75С) | Q35: 185/15 | R35: 185/15
A36: Хлеб пшеничный | B36: 20 | C36: 20 | D36: Хлеб пшеничный | F36: 30 | G36: Хлеб пшеничный | H36: 35 | I36: 20 | J36: Хлеб пшеничный | K36: 20 | L36: 35 | M36: Хлеб пшеничный | N36: 20 | O36: 20 | P36: Хлеб пшеничный | Q36: 25 | R36: 40
A37: Хлеб ржаной | B37: 20 | C37: 30 | D37: Хлеб ржаной | E37: 40 | F37: 20 | G37: Хлеб ржаной | H37: 25 | I37: 30 | J37: Хлеб ржаной | L37: 35 | M37: Хлеб ржаной | N37: 20 | O37: 25 | P37: Хлеб ржаной | Q37: 20 | R37: 30
A38: Итого: | B38: 583 | C38: 553 | D38: Итого: | E38: 500 | F38: 550 | G38: Итого: | H38: 565 | I38: 630 | J38: Итого: | K38: 573 | L38: 553 | M38: Итого: | N38: 560 | O38: 635 | P38: Итого: | Q38: 520 | R38: 570
A40: Белки,г | B40: 19.140 | C40: 18.900 | E40: 19.930 | F40: 23.290 | H40: 20.200 | I40: 18.140 | K40: 15.140 | L40: 18.710 | N40: 19.660 | O40: 23.580 | Q40: 18.550 | R40: 22.500 | S40: =B40+E40+H40+K40+N40+Q40 -> 112.62 | T40: 125.12
A41: Жиры,г | B41: 19.670 | C41: 19.080 | E41: 20.560 | F41: 24.150 | H41: 20.700 | I41: 19.310 | K41: 15.170 | L41: 18.620 | N41: 20.390 | O41: 24.130 | Q41: 18.970 | R41: 22.090 | S41: 115.46 | T41: 127.38
A42: Углеводы,г | B42: 79.670 | C42: 73.060 | E42: 79.810 | F42: 93.000 | H42: 81.110 | I42: 73.510 | K42: 70.120 | L42: 78.220 | N42: 82.110 | O42: 95.780 | Q42: 82.750 | R42: 94.570 | S42: 475.57 | T42: 508.14
A43: ЭЦ,ккал | B43: 566.750 | C43: 568.890 | E43: 598.020 | F43: 659.920 | H43: 595.680 | I43: 559.320 | K43: 463.690 | L43: 546.180 | N43: 588.400 | O43: 679.590 | Q43: 579.350 | R43: 646.580 | S43: 3391.89 | T43: 3660.48
P44: ЭЦ на 1 учащегося,ккал за 12дней | S44: =S21+S43 -> 6823.10 | T44: =T21+T43 -> 7572.67
P45: ЭЦ на 1 учащегося,ккал в среднем за день | S45: =S44/12 -> 568.59 | T45: =T44/12 -> 631.06
P46: Распределение по приему пищи,% | S46: 25% | T46: 20-25%
